bitfinex/quotes_BTCUSD_20251212
["timestamp","ask_amount","ask_price","bid_price","bid_amount"]
[1765508425105,0.22680389,92591.0,92573.0,0.01080228]
[1765508425106,0.06106451,92581.0,92573.0,0.05782697]
[1765508425300,0.06267738,92581.0,92571.0,0.01080251]
[1765508425473,0.08542738,92581.0,92571.0,0.30150251]
[1765508425678,0.08542738,92581.0,92580.0,0.00021]
[1765508426551,0.12757537,92581.0,92580.0,0.00021]
[1765508426722,0.12857537,92581.0,92580.0,0.00521]
[1765508427159,0.05183376,92581.0,92580.0,0.00521]
[1765508427341,0.05083376,92581.0,92580.0,0.00221]
[1765508427565,0.05083376,92581.0,92580.0,0.00021]
[1765508427943,0.05483376,92581.0,92580.0,0.00021]
[1765508428161,0.13130423,92581.0,92580.0,0.00021]
[1765508429194,0.13030423,92581.0,92580.0,0.00121]
[1765508429404,0.13830423,92581.0,92580.0,0.00221]
[1765508429540,0.13530423,92581.0,92580.0,0.00121]
[1765508430099,0.14230423,92581.0,92580.0,0.00221]
[1765508432585,0.06583376,92581.0,92580.0,0.00221]
[1765508433440,0.06583376,92581.0,92580.0,0.00228972]
[1765508433657,0.09283714,92581.0,92580.0,0.00228972]
[1765508433858,0.10991714,92581.0,92580.0,0.00228972]
[1765508434581,0.09283714,92581.0,92580.0,0.00228972]
[1765508434901,0.10991714,92581.0,92580.0,0.00228972]
[1765508439118,0.09283714,92581.0,92580.0,0.00228972]
[1765508439249,0.10991714,92581.0,92580.0,0.00228972]
[1765508440695,0.09283714,92581.0,92580.0,0.00228972]
[1765508440898,0.10991714,92581.0,92580.0,0.00228972]
[1765508442293,0.18958391,92581.0,92580.0,0.00228972]
[1765508445846,0.18958391,92581.0,92550.0,0.57143735]
[1765508445847,0.01080345,92563.0,92557.0,0.14514108]
[1765508446049,0.21607138,92562.0,92557.0,0.00011658]
[1765508446254,0.22688041,92560.0,92557.0,0.00011658]
[1765508446814,0.0108038,92560.0,92557.0,0.00011658]
[1765508447013,0.22688115,92560.0,92557.0,0.00011658]
[1765508447211,0.0108038,92560.0,92557.0,0.00011658]
[1765508447641,0.0108038,92560.0,92557.0,0.01292073]
[1765508447844,0.0108038,92560.0,92557.0,0.01592073]
[1765508448014,0.0108038,92560.0,92557.0,0.01392073]
[1765508448221,0.0108038,92560.0,92557.0,0.01592073]
[1765508448620,0.03593,92559.0,92557.0,0.00511658]
[1765508448846,0.0113,92559.0,92557.0,0.00211658]
[1765508449228,0.0113,92559.0,92557.0,0.00511658]
[1765508449570,0.04641099,92559.0,92557.0,0.00511658]
[1765508449794,0.04641099,92559.0,92557.0,0.22119922]
[1765508449998,0.0113,92559.0,92557.0,0.22119922]
[1765508450809,0.0113,92559.0,92557.0,0.21619922]
[1765508451019,0.02463,92564.0,92562.0,0.21607003]
[1765508451222,0.02463,92564.0,92563.0,0.04329168]
[1765508452223,0.02563,92564.0,92563.0,0.04329168]
[1765508452430,0.001,92564.0,92563.0,0.04329168]
[1765508452816,0.001,92564.0,92563.0,0.04429168]
[1765508453155,0.001,92564.0,92563.0,0.07612168]
[1765508453292,0.001,92564.0,92563.0,0.36682168]
[1765508453699,0.0113,92592.0,92581.0,0.01080135]
[1765508453700,0.010801,92584.0,92581.0,0.01080135]
[1765508454137,0.01080076,92586.0,92581.0,0.01080135]
[1765508454138,0.01080076,92586.0,92582.0,0.22682562]
[1765508454553,0.01080076,92586.0,92582.0,0.01080123]
[1765508454901,0.001,92584.0,92583.0,0.01080111]
[1765508455102,0.001,92584.0,92583.0,0.05409279]
[1765508455302,0.02210006,92592.0,92587.0,0.01080065]
[1765508455502,0.01080018,92591.0,92587.0,0.01080065]
[1765508455754,0.0108003,92590.0,92587.0,0.01080065]
[1765508456053,0.01080018,92591.0,92587.0,0.01080065]
[1765508456805,0.03543018,92591.0,92587.0,0.01080065]
[1765508457004,0.0108003,92590.0,92585.0,0.01080088]
[1765508457220,0.0108003,92590.0,92587.0,0.001]
[1765508457468,0.03543018,92591.0,92587.0,0.001]
[1765508457713,0.03943018,92591.0,92587.0,0.01080065]
[1765508458017,0.03943018,92591.0,92587.0,0.01180065]
[1765508458251,0.21600838,92589.0,92587.0,0.001]
[1765508458689,0.02463,92589.0,92587.0,0.001]
[1765508459323,0.0108003,92590.0,92587.0,0.001]
[1765508459523,0.008,92591.0,92588.0,0.2268103]
[1765508459869,0.004,92591.0,92588.0,0.2268103]
[1765508460082,0.0108003,92590.0,92586.0,0.22681564]
[1765508460370,0.001,92589.0,92586.0,0.22681564]
[1765508461119,0.005,92591.0,92588.0,0.21700982]
[1765508461302,0.004,92590.0,92588.0,0.001]
[1765508461507,0.03543018,92591.0,92586.0,0.01080076]
[1765508461680,0.03543018,92591.0,92588.0,0.01080053]
[1765508461865,0.0113,92592.0,92589.0,0.22680879]
[1765508462069,0.0113,92592.0,92588.0,0.01080053]
[1765508462275,0.0113,92592.0,92589.0,0.01080041]
[1765508462481,0.004,92590.0,92589.0,0.01080041]
[1765508462905,0.004,92590.0,92586.0,0.01080076]
[1765508462906,0.23080764,92590.0,92586.0,0.01080076]
[1765508463105,0.0148003,92590.0,92587.0,0.01080065]
[1765508463662,0.004,92591.0,92588.0,0.22681109]
[1765508463865,0.02210006,92592.0,92588.0,0.01080053]
[1765508464138,0.02710006,92592.0,92589.0,0.001]
[1765508464343,0.004,92590.0,92588.0,0.22681074]
[1765508464715,0.004,92590.0,92588.0,0.01080053]
[1765508464911,0.02210006,92592.0,92589.0,0.01080041]
[1765508465114,0.004,92592.0,92591.0,0.01501]
[1765508465461,0.004,92592.0,92590.0,0.21600604]
[1765508465462,0.009,92592.0,92590.0,0.21600604]
[1765508465615,0.004,92592.0,92590.0,0.21600604]
[1765508466250,0.01079971,92595.0,92591.0,0.01080018]
[1765508466388,0.0107996,92596.0,92592.0,0.01080006]
[1765508466803,0.01079831,92607.0,92602.0,0.0107989]
[1765508467004,0.0107982,92608.0,92605.0,0.01079855]
[1765508467203,0.01079808,92609.0,92606.0,0.02118843]
[1765508467427,0.01079796,92610.0,92607.0,0.01079831]
[1765508467956,0.01079796,92610.0,92606.0,0.02118843]
[1765508468340,0.01079796,92610.0,92607.0,0.01079831]
[1765508468716,0.01179796,92610.0,92607.0,0.01079831]
[1765508468912,0.001,92610.0,92607.0,0.22676315]
[1765508469113,0.001,92610.0,92609.0,0.01501]
[1765508469923,0.01079692,92619.0,92614.0,0.0107975]
[1765508470303,0.02787715,92617.0,92614.0,0.0107975]
[1765508470546,0.28342657,92622.0,92616.0,0.01079727]
[1765508470547,0.22673111,92621.0,92616.0,0.01079727]
[1765508470740,0.01118413,92621.0,92616.0,0.22674246]
[1765508471070,0.22673288,92620.0,92615.0,0.01079738]
[1765508471280,0.01079703,92618.0,92615.0,0.01079738]
[1765508471481,0.001,92617.0,92615.0,0.01079738]
[1765508471794,0.01079703,92618.0,92615.0,0.01079738]
[1765508471991,0.01079703,92618.0,92614.0,0.0107975]
[1765508472288,0.01079715,92617.0,92614.0,0.0107975]
[1765508473080,0.0107968,92620.0,92614.0,0.22674719]
[1765508473333,0.0107968,92620.0,92615.0,0.001]
[1765508473849,0.01079773,92612.0,92608.0,0.0107982]
[1765508474050,0.01602,92616.0,92613.0,0.01079762]
[1765508474289,0.22711862,92621.0,92613.0,0.01079762]
[1765508474290,0.00038745,92621.0,92617.0,0.01079715]
[1765508474510,0.001,92620.0,92618.0,0.01682]
[1765508474726,0.00038745,92621.0,92620.0,0.00643]
[1765508474936,0.00038745,92621.0,92620.0,0.31214]
[1765508475159,0.00038745,92621.0,92620.0,0.37208798]
[1765508477031,0.00038745,92621.0,92620.0,0.37508798]
[1765508477435,0.00138745,92621.0,92620.0,0.37908798]
[1765508479576,0.00138745,92621.0,92620.0,0.33596]
[1765508482645,0.00138745,92621.0,92620.0,0.37908798]
[1765508482930,0.00138745,92621.0,92620.0,0.33596]
[1765508483130,0.00138745,92621.0,92620.0,0.37908798]
[1765508483483,0.00138745,92621.0,92620.0,0.33596]
[1765508483651,0.00138745,92621.0,92620.0,0.37908798]
[1765508483851,0.00138745,92621.0,92620.0,0.33596]
[1765508484260,0.04057745,92621.0,92620.0,0.007]
[1765508484461,0.04219032,92621.0,92620.0,0.007]
[1765508485091,0.25812407,92621.0,92620.0,0.007]
[1765508485288,0.25812407,92621.0,92620.0,0.004]
[1765508485505,0.04219032,92621.0,92620.0,0.004]
[1765508485708,0.00300032,92621.0,92620.0,0.005]
[1765508485903,0.04219032,92621.0,92620.0,0.005]
[1765508486157,0.04119032,92621.0,92620.0,0.001]
[1765508486361,0.04119032,92621.0,92620.0,0.003]
[1765508488602,0.00200032,92621.0,92620.0,0.24089608]
[1765508488835,0.00200032,92621.0,92620.0,0.003]
[1765508491266,0.00038745,92621.0,92620.0,0.02496]
[1765508491670,0.00038745,92621.0,92620.0,0.0465536]
[1765508492532,0.00038745,92621.0,92620.0,0.0310236]
[1765508492939,0.00038745,92621.0,92620.0,0.0465536]
[1765508493396,0.00038745,92621.0,92620.0,0.0633736]
[1765508493562,0.00038745,92621.0,92620.0,0.0465536]
[1765508494474,0.00038745,92621.0,92620.0,0.00943]
[1765508494682,0.01596745,92621.0,92620.0,0.003]
[1765508494894,0.0649261,92621.0,92620.0,0.003]
[1765508495093,0.01596745,92621.0,92620.0,0.003]
[1765508495293,0.04119032,92621.0,92620.0,0.003]
[1765508495469,0.08578483,92621.0,92620.0,0.003]
[1765508495876,0.04119032,92621.0,92620.0,0.003]
[1765508496072,0.08578483,92621.0,92620.0,0.003]
[1765508498236,0.08578483,92621.0,92578.0,0.05794771]
[1765508498237,0.21601304,92587.0,92578.0,0.05794771]
[1765508498415,0.21601304,92587.0,92561.0,0.01080368]
[1765508498416,0.21604967,92572.0,92561.0,0.01080368]
[1765508498625,0.01080228,92573.0,92565.0,0.01080321]
[1765508498854,0.01080228,92573.0,92563.0,0.01080345]
[1765508498855,0.01080251,92571.0,92563.0,0.01080345]
[1765508499067,0.01080251,92571.0,92562.0,0.2907]
[1765508499068,0.01080263,92570.0,92562.0,0.2907]
[1765508499217,0.01080263,92570.0,92564.0,0.01080333]
[1765508499423,0.01080263,92570.0,92564.0,0.01091991]
[1765508499744,0.01080275,92569.0,92564.0,0.01091991]
[1765508500435,0.01080286,92568.0,92565.0,0.01080321]
[1765508501382,0.01080275,92569.0,92566.0,0.0108031]
[1765508501523,0.01080286,92568.0,92565.0,0.01080321]
[1765508502075,0.01080275,92569.0,92565.0,0.01080321]
[1765508502435,0.01080286,92568.0,92564.0,0.01091991]
[1765508502641,0.01080286,92568.0,92566.0,0.003]
[1765508502865,0.01080286,92568.0,92566.0,0.002]
[1765508503043,0.01080286,92568.0,92564.0,0.01091991]
[1765508503263,0.01080286,92568.0,92565.0,0.002]
[1765508504513,0.01080286,92568.0,92565.0,0.003]
[1765508504746,0.01080286,92568.0,92566.0,0.001]
[1765508504910,0.01080298,92567.0,92564.0,0.01091991]
[1765508505289,0.22686342,92567.0,92565.0,0.005]
[1765508505604,0.01080298,92567.0,92565.0,0.003]
[1765508505810,0.22686328,92567.0,92564.0,0.00011658]
[1765508506011,0.22686328,92567.0,92566.0,0.001]
[1765508506306,0.22686328,92567.0,92564.0,0.00011658]
[1765508506512,0.01180298,92567.0,92564.0,0.00311658]
[1765508506814,0.01180298,92567.0,92566.0,0.04329168]
[1765508506986,0.001,92567.0,92566.0,0.04329168]
[1765508507190,0.001,92567.0,92566.0,0.05368168]
[1765508507709,0.01080275,92569.0,92566.0,0.06448478]
[1765508508268,0.01080263,92570.0,92566.0,0.06648478]
[1765508508492,0.01080275,92569.0,92566.0,0.06648478]
[1765508508692,0.01080275,92569.0,92566.0,0.06448478]
[1765508508966,0.01080275,92569.0,92566.0,0.06648478]
[1765508509176,0.01197,92579.0,92571.0,0.01080251]
[1765508509385,0.02788205,92575.0,92571.0,0.01080251]
[1765508509610,0.01080251,92571.0,92568.0,0.01080286]
[1765508510341,0.01080216,92574.0,92570.0,0.01080263]
[1765508510664,0.01080228,92573.0,92570.0,0.01080263]
[1765508510858,0.02788205,92575.0,92570.0,0.01080263]
[1765508510859,0.01708,92575.0,92572.0,0.0108024]
[1765508511063,0.02788205,92575.0,92571.0,0.01180251]
[1765508511321,0.24392487,92575.0,92571.0,0.01180251]
[1765508511849,0.24392487,92575.0,92571.0,0.01080251]
[1765508511984,0.24492487,92575.0,92571.0,0.01080251]
[1765508512190,0.02788205,92575.0,92571.0,0.01080251]
[1765508512424,0.02888205,92575.0,92571.0,0.01080251]
[1765508513029,0.01808,92575.0,92572.0,0.0108024]
[1765508513292,0.24492368,92575.0,92570.0,0.01080263]
[1765508513726,0.24492368,92575.0,92571.0,0.001]
[1765508513727,0.24392368,92575.0,92571.0,0.001]
[1765508514159,0.21604626,92573.0,92571.0,0.001]
[1765508514334,0.01080263,92570.0,92567.0,0.01080298]
[1765508514566,0.03559216,92574.0,92568.0,0.21605738]
[1765508514801,0.01708,92575.0,92570.0,0.01180263]
[1765508514919,0.01708,92575.0,92572.0,0.0108024]
[1765508515125,0.0108024,92572.0,92566.0,0.06448478]
[1765508515325,0.0108024,92572.0,92569.0,0.01080275]
[1765508515766,0.01080228,92573.0,92569.0,0.22685693]
[1765508516528,0.01080228,92573.0,92570.0,0.01080263]
[1765508516927,0.01808,92575.0,92572.0,0.0108024]
[1765508517149,0.01708,92575.0,92572.0,0.0108024]
[1765508517844,0.02788205,92575.0,92571.0,0.01080251]
[1765508518043,0.24492376,92575.0,92571.0,0.01080251]
[1765508518226,0.24492376,92575.0,92571.0,0.22685288]
[1765508518432,0.24492376,92575.0,92572.0,0.0108024]
[1765508518629,0.24492376,92575.0,92572.0,0.0118024]
[1765508518841,0.24392376,92575.0,92572.0,0.0118024]
[1765508519388,0.02788205,92575.0,92572.0,0.0118024]
[1765508519845,0.02788205,92575.0,92572.0,0.0108024]
[1765508520176,0.02888205,92575.0,92572.0,0.0108024]
[1765508520506,0.02788205,92575.0,92572.0,0.0108024]
[1765508520707,0.02888205,92575.0,92572.0,0.0108024]
[1765508521132,0.01180205,92575.0,92572.0,0.0118024]
[1765508521899,0.01180205,92575.0,92572.0,0.001]
[1765508522314,0.22853338,92574.0,92572.0,0.001]
[1765508522495,0.21604338,92574.0,92572.0,0.001]
[1765508522696,0.01180205,92575.0,92572.0,0.001]
[1765508522895,0.01180205,92575.0,92572.0,0.0118024]
[1765508523099,0.01180205,92575.0,92567.0,0.22686257]
[1765508523100,0.010801,92584.0,92577.0,0.01080181]
[1765508523363,0.01708,92578.0,92577.0,0.01080181]
[1765508523586,0.01708,92578.0,92575.0,0.01080205]
[1765508523587,0.01708,92578.0,92575.0,0.22684115]
[1765508524331,0.01708,92578.0,92577.0,0.001]
[1765508524574,0.01808,92578.0,92577.0,0.001]
[1765508524775,0.01808,92578.0,92575.0,0.22684115]
[1765508524950,0.01708,92578.0,92575.0,0.22684115]
[1765508525262,0.24391762,92578.0,92574.0,0.01080216]
[1765508525765,0.24391583,92578.0,92574.0,0.01080216]
[1765508526160,0.01080181,92577.0,92573.0,0.01080228]
[1765508526585,0.01080193,92576.0,92573.0,0.01080228]
[1765508527195,0.01080205,92575.0,92568.0,0.2907]
[1765508527468,0.22685079,92572.0,92570.0,0.05794771]
[1765508527684,0.21605505,92569.0,92568.0,0.2907]
[1765508528257,0.2268578,92569.0,92566.0,0.05794771]
[1765508528424,0.2268578,92569.0,92567.0,0.05794771]
[1765508529326,0.03157374,92568.0,92567.0,0.05794771]
[1765508529539,0.21606438,92565.0,92564.0,0.05806429]
[1765508529983,0.22686316,92567.0,92564.0,0.05806429]
[1765508530179,0.22686316,92567.0,92566.0,0.04329168]
[1765508530583,0.01080298,92567.0,92566.0,0.04329168]
[1765508531706,0.21606205,92566.0,92564.0,0.00011658]
[1765508531859,0.21606205,92566.0,92565.0,0.04329168]
[1765508532712,0.21606205,92566.0,92564.0,0.00011658]
[1765508532713,0.23252205,92566.0,92564.0,0.00011658]
[1765508532916,0.04125,92565.0,92564.0,0.00011658]
[1765508533072,0.01646,92565.0,92564.0,0.00011658]
[1765508533257,0.21606205,92566.0,92565.0,0.001]
[1765508533829,0.21606205,92566.0,92564.0,0.00011658]
[1765508534031,0.21606205,92566.0,92564.0,0.00111658]
[1765508534231,0.01080298,92567.0,92564.0,0.00111658]
[1765508534439,0.226864,92567.0,92564.0,0.00111658]
[1765508534615,0.04459451,92575.0,92564.0,0.00111658]
[1765508534616,0.01708,92572.0,92566.0,0.01501]
[1765508534828,0.01080205,92575.0,92571.0,0.06910419]
[1765508535048,0.22684164,92576.0,92573.0,0.01501]
[1765508535256,0.01708,92580.0,92576.0,0.21603871]
[1765508535453,0.01708,92580.0,92577.0,0.0261]
[1765508535776,0.01708,92580.0,92577.0,0.03690181]
[1765508535777,0.01080146,92580.0,92577.0,0.03690181]
[1765508536639,0.01680146,92580.0,92577.0,0.03690181]
[1765508536849,0.01180146,92580.0,92577.0,0.03690181]
[1765508537360,0.21603171,92579.0,92577.0,0.0261]
[1765508537700,0.01180146,92580.0,92577.0,0.0261]
[1765508537913,0.21603171,92579.0,92577.0,0.0261]
[1765508538261,0.21603171,92579.0,92577.0,0.01039]
[1765508539289,0.001,92579.0,92577.0,0.01039]
[1765508539489,0.21803264,92579.0,92577.0,0.01039]
[1765508539990,0.002,92579.0,92577.0,0.01039]
[1765508540554,0.21803204,92579.0,92577.0,0.01039]
[1765508541292,0.22684483,92575.0,92572.0,0.2907]
[1765508541515,0.01188,92573.0,92572.0,0.2907]
[1765508541794,0.01188,92573.0,92564.0,0.00011658]
[1765508541795,0.21604804,92572.0,92570.0,0.05794771]
[1765508542021,0.22686269,92567.0,92564.0,0.05806429]
[1765508542367,0.01080298,92567.0,92564.0,0.05806429]
[1765508542786,0.01080251,92571.0,92568.0,0.01080286]
[1765508543107,0.01080251,92571.0,92570.0,0.04329168]
[1765508543693,0.01019979,92571.0,92570.0,0.04329168]
[1765508545391,0.01119979,92571.0,92570.0,0.04329168]
[1765508546021,0.001,92571.0,92570.0,0.04329168]
[1765508548367,0.001,92571.0,92566.0,0.05794771]
[1765508548368,0.01080275,92569.0,92566.0,0.05794771]
[1765508548567,0.01080275,92569.0,92564.0,0.05806429]
[1765508548568,0.03924298,92567.0,92564.0,0.05806429]
[1765508548784,0.21606205,92566.0,92564.0,0.05806429]
[1765508549579,0.21606205,92566.0,92564.0,0.00011658]
[1765508550472,0.21606205,92566.0,92564.0,0.00111658]
[1765508557428,0.04133,92565.0,92564.0,0.00111658]
[1765508558248,0.04133,92565.0,92564.0,0.00011658]
[1765508558453,0.21606205,92566.0,92564.0,0.00011658]
[1765508558660,0.21606205,92566.0,92564.0,0.00111658]
[1765508559041,0.01080298,92567.0,92564.0,0.00111658]
[1765508559247,0.01080298,92567.0,92564.0,0.01091991]
[1765508559591,0.01080251,92571.0,92566.0,0.0271231]
[1765508559870,0.21605038,92571.0,92570.0,0.05368168]
[1765508560737,0.01080135,92581.0,92574.0,0.01080216]
[1765508560942,0.22683083,92580.0,92576.0,0.01080193]
[1765508561352,0.01080146,92580.0,92576.0,0.01080193]
[1765508561630,0.01080158,92579.0,92576.0,0.01080193]
[1765508561836,0.01080146,92580.0,92576.0,0.01080193]
[1765508562044,0.005,92580.0,92577.0,0.22683744]
[1765508562458,0.01,92580.0,92577.0,0.22683744]
[1765508563140,0.005,92580.0,92577.0,0.22683744]
[1765508563336,0.005,92580.0,92579.0,0.01080158]
[1765508563565,0.01,92580.0,92579.0,0.01080158]
[1765508564465,0.05713146,92580.0,92577.0,0.001]
[1765508564682,0.01080158,92579.0,92576.0,0.01080193]
[1765508565535,0.008,92580.0,92577.0,0.05409349]
[1765508565706,0.013,92580.0,92577.0,0.05509349]
[1765508566295,0.01880146,92580.0,92577.0,0.04329168]
[1765508566498,0.04174146,92580.0,92577.0,0.04329168]
[1765508566738,0.005,92579.0,92577.0,0.04329168]
[1765508567119,0.01,92579.0,92577.0,0.04329168]
[1765508567322,0.005,92579.0,92577.0,0.04329168]
[1765508567636,0.005,92579.0,92577.0,0.26032745]
[1765508567850,0.02794,92580.0,92577.0,0.27112926]
[1765508568056,0.02294,92580.0,92577.0,0.27012926]
[1765508568216,0.005,92579.0,92577.0,0.27212926]
[1765508568800,0.005,92579.0,92577.0,0.04529168]
[1765508569000,0.005,92579.0,92577.0,0.002]
[1765508569200,0.005,92579.0,92577.0,0.001]
[1765508569520,0.01,92579.0,92577.0,0.002]
[1765508570038,0.3262428,92578.0,92577.0,0.002]
[1765508570242,0.29923855,92578.0,92577.0,0.002]
[1765508571029,0.21606425,92566.0,92561.0,0.05794771]
[1765508571232,0.01080263,92570.0,92565.0,0.03327]
[1765508571469,0.01080251,92571.0,92569.0,0.01039]
[1765508571831,0.21605271,92570.0,92569.0,0.01039]
[1765508572292,0.01080251,92571.0,92569.0,0.01039]
[1765508572490,0.21605271,92570.0,92569.0,0.01039]
[1765508572919,0.01080275,92569.0,92565.0,0.01080321]
[1765508573680,0.01080286,92568.0,92565.0,0.01080321]
[1765508574268,0.01080298,92567.0,92564.0,0.00011658]
[1765508574876,0.01080298,92567.0,92565.0,0.001]
[1765508575293,0.21606205,92566.0,92565.0,0.001]
[1765508575497,0.21606205,92566.0,92564.0,0.00011658]
[1765508575938,0.21606205,92566.0,92564.0,0.00111658]
[1765508576582,0.01080275,92569.0,92564.0,0.00111658]
[1765508576583,0.01080275,92569.0,92565.0,0.01645]
[1765508576759,0.01080263,92570.0,92566.0,0.0108031]
[1765508576978,0.01080275,92569.0,92565.0,0.01080321]
[1765508578323,0.01080275,92569.0,92565.0,0.01180321]
[1765508578702,0.01080286,92568.0,92565.0,0.01180321]
[1765508579274,0.01080275,92569.0,92565.0,0.01180321]
[1765508580009,0.01080275,92569.0,92565.0,0.01080321]
[1765508580227,0.01080286,92568.0,92565.0,0.01080321]
[1765508580467,0.01080286,92568.0,92565.0,0.001]
[1765508580694,0.22685673,92570.0,92565.0,0.01180321]
[1765508580984,0.08461451,92575.0,92569.0,0.01080275]
[1765508581189,0.01708,92575.0,92571.0,0.01080251]
[1765508581389,0.02788205,92575.0,92571.0,0.01080251]
[1765508581594,0.01708,92575.0,92572.0,0.22684846]
[1765508581791,0.01080216,92574.0,92570.0,0.01080263]
[1765508582270,0.01708,92575.0,92570.0,0.01080263]
[1765508582271,0.02788205,92575.0,92571.0,0.01080251]
[1765508582474,0.01708,92575.0,92572.0,0.0108024]
[1765508582925,0.001,92574.0,92572.0,0.0108024]
[1765508583228,0.01708,92575.0,92572.0,0.0108024]
[1765508583661,0.01808,92575.0,92572.0,0.22684997]
[1765508583782,0.01708,92575.0,92572.0,0.22684997]
[1765508584027,0.01080193,92576.0,92572.0,0.0108024]
[1765508584427,0.01180205,92575.0,92572.0,0.0108024]
[1765508584678,0.01180205,92575.0,92570.0,0.22685499]
[1765508584679,0.22784324,92575.0,92570.0,0.01080263]
[1765508585057,0.001,92574.0,92570.0,0.01080263]
[1765508585428,0.001,92576.0,92573.0,0.01080228]
[1765508585645,0.001,92576.0,92575.0,0.02288]
[1765508585847,0.001,92576.0,92575.0,0.0397]
[1765508586477,0.01080135,92581.0,92576.0,0.01080193]
[1765508586659,0.0108017,92578.0,92575.0,0.00643]
[1765508586862,0.0108017,92578.0,92572.0,0.0108024]
[1765508586863,0.01080193,92576.0,92572.0,0.0108024]
[1765508587066,0.01074941,92576.0,92572.0,0.0108024]
[1765508587512,0.01280193,92576.0,92573.0,0.01080228]
[1765508587710,0.002,92576.0,92573.0,0.01080228]
[1765508588029,0.01280193,92576.0,92572.0,0.0108024]
[1765508588428,0.001,92576.0,92573.0,0.01080228]
[1765508589499,0.002,92576.0,92573.0,0.01080228]
[1765508589702,0.01080181,92577.0,92574.0,0.01080216]
[1765508589909,0.01080181,92577.0,92576.0,0.04329168]
[1765508590968,0.01180181,92577.0,92576.0,0.04329168]
[1765508591149,0.001,92577.0,92576.0,0.04329168]
[1765508591350,0.02251158,92579.0,92576.0,0.04329168]
[1765508592219,0.002,92577.0,92576.0,0.04329168]
[1765508592422,0.02251158,92579.0,92576.0,0.04329168]
[1765508592566,0.23854468,92579.0,92576.0,0.04329168]
[1765508592773,0.001,92577.0,92576.0,0.04429168]
[1765508593022,0.001,92577.0,92576.0,0.04329168]
[1765508593313,0.23854468,92579.0,92576.0,0.04329168]
[1765508593673,0.21603638,92577.0,92576.0,0.04429168]
[1765508593882,0.24354468,92579.0,92576.0,0.04429168]
[1765508594303,0.002,92577.0,92576.0,0.04429168]
[1765508594505,0.002,92577.0,92576.0,0.04329168]
[1765508594721,0.23854468,92579.0,92576.0,0.04329168]
[1765508594921,0.21603637,92578.0,92576.0,0.04429168]
[1765508595404,0.02251158,92579.0,92576.0,0.05409361]
[1765508595604,0.002,92577.0,92576.0,0.05409361]
[1765508596112,0.001,92577.0,92576.0,0.04329168]
[1765508596314,0.001,92577.0,92576.0,0.04429168]
[1765508596430,0.21703638,92577.0,92576.0,0.04429168]
[1765508596833,0.001,92577.0,92576.0,0.04429168]
[1765508597494,0.001,92577.0,92576.0,0.04329168]
[1765508597922,0.003,92577.0,92576.0,0.04329168]
[1765508599014,0.003,92577.0,92576.0,0.66273197]
[1765508599233,0.003,92577.0,92576.0,0.58318039]
[1765508600041,0.002,92577.0,92576.0,0.58318039]
[1765508600216,0.002,92577.0,92576.0,0.58418039]
[1765508600415,0.01080018,92591.0,92587.0,0.01080065]
[1765508600637,0.0107996,92596.0,92590.0,0.28601735]
[1765508600846,0.0107996,92596.0,92595.0,0.01633]
[1765508601168,0.0107996,92596.0,92591.0,0.01682]
[1765508601169,0.2267926,92596.0,92592.0,0.01080006]
[1765508601564,0.01079983,92594.0,92591.0,0.01080018]
[1765508602130,0.01079971,92595.0,92591.0,0.01080018]
[1765508602328,0.0107996,92596.0,92593.0,0.01079995]
[1765508602542,0.0107996,92596.0,92590.0,0.06448198]
[1765508602543,0.01079971,92595.0,92590.0,0.05368168]
[1765508602746,0.01079995,92593.0,92590.0,0.05368168]
[1765508603017,0.01179983,92594.0,92591.0,0.01080018]
[1765508603201,0.01079995,92593.0,92590.0,0.05368168]
[1765508603396,0.01079995,92593.0,92590.0,0.06448198]
[1765508603601,0.01079995,92593.0,92592.0,0.001]
[1765508604128,0.22680144,92592.0,92585.0,0.22681829]
[1765508604577,0.01080041,92589.0,92586.0,0.01080076]
[1765508604794,0.01080053,92588.0,92585.0,0.01080088]
[1765508605053,0.0108003,92590.0,92587.0,0.01080065]
[1765508605255,0.0108003,92590.0,92586.0,0.01080076]
[1765508605473,0.0108003,92590.0,92584.0,0.010801]
[1765508605474,0.01080053,92588.0,92584.0,0.010801]
[1765508605688,0.0108003,92590.0,92586.0,0.21601538]
[1765508606248,0.0108003,92590.0,92587.0,0.01080065]
[1765508606452,0.01080041,92589.0,92586.0,0.01080076]
[1765508606637,0.0108003,92590.0,92587.0,0.01080065]
[1765508607167,0.22680634,92590.0,92586.0,0.01180076]
[1765508607366,0.01080041,92589.0,92586.0,0.01180076]
[1765508607592,0.001,92590.0,92588.0,0.21601071]
[1765508607763,0.001,92590.0,92589.0,0.36499055]
[1765508607954,0.001,92590.0,92589.0,0.32385]
[1765508608394,0.01079878,92603.0,92599.0,0.01079925]
[1765508608592,0.01079866,92604.0,92602.0,0.04329168]
[1765508608819,0.22677321,92604.0,92602.0,0.04329168]
[1765508609458,0.01079855,92605.0,92602.0,0.04329168]
[1765508610835,0.001,92604.0,92602.0,0.04329168]
[1765508611036,0.21596729,92607.0,92604.0,0.01079866]
[1765508611037,0.01079831,92607.0,92604.0,0.01079866]
[1765508611442,0.22676017,92609.0,92604.0,0.01079866]
[1765508611443,0.001,92605.0,92604.0,0.01079866]
[1765508612142,0.001,92605.0,92604.0,0.01179866]
[1765508612673,0.001,92605.0,92604.0,0.01079866]
[1765508612983,0.003,92605.0,92602.0,0.27006801]
[1765508613194,0.002,92605.0,92602.0,0.27006801]
[1765508613542,0.002,92605.0,92602.0,0.05409058]
[1765508613755,0.001,92604.0,92602.0,0.05409058]
[1765508613955,0.002,92605.0,92602.0,0.27006854]
[1765508614273,0.001,92605.0,92603.0,0.01079878]
[1765508614863,0.001,92604.0,92603.0,0.01079878]
[1765508615886,0.001,92604.0,92602.0,0.04329168]
[1765508616087,0.21597572,92603.0,92602.0,0.04329168]
[1765508616324,0.001,92604.0,92602.0,0.04329168]
[1765508616981,0.002,92604.0,92602.0,0.04329168]
[1765508617380,0.21697519,92604.0,92602.0,0.04329168]
[1765508617831,0.001,92603.0,92602.0,0.04329168]
[1765508618421,0.21697519,92604.0,92602.0,0.04329168]
[1765508618625,0.21797519,92604.0,92602.0,0.04329168]
[1765508619242,0.21597519,92604.0,92602.0,0.04329168]
[1765508619458,0.002,92603.0,92602.0,0.04329168]
[1765508619846,0.001,92603.0,92602.0,0.25926973]
[1765508620078,0.001,92603.0,92602.0,0.04329168]
[1765508621849,0.002,92603.0,92602.0,0.04329168]
[1765508623707,0.002,92603.0,92602.0,0.05962168]
[1765508625934,0.002,92603.0,92602.0,0.07644168]